[Event "European Amateur-ch U2000 2019"]
[Site "Rhodes"]
[Date "2019.04.12"]
[Round "7.4"]
[White "Flis, Pawel"]
[Black "Bozinovic, Boban"]
[Result "1-0"]
[ECO "B23"]
[WhiteElo "1903"]
[BlackElo "1950"]
[Annotator "NA"]
[PlyCount "375"]
[EventDate "2019.04.06"]
[EventType "swiss"]
[EventCountry "GRE"]
[SourceTitle "playchess.com"]
[Source "ChessBase"]
[SourceQuality "1"]
[TimeControl "40/5400+30:1800+30"]

1. e4 {[%emt 0:00:00]} c5 {[%emt 0:00:00]} 2. Nc3 {[%emt 0:00:00]} Nc6 {[%emt 0:02:05]} 3. Bb5 {[%emt 0:00:03]} g6 {[%emt 0:00:45]} 4. Bxc6 {[%emt 0:00:09]} bxc6 {[%emt 0:02:54]} 5. d3 {[%emt 0:01:06]} Bg7 {[%emt 0:00:12]} 6. f4 {[%emt 0:03:33]} d6 {[%emt 0:00:35]} 7. Nf3 {[%emt 0:03:06]} Qc7 {[%emt 0:00:39] B23: Closed Sicilian: Lines without g3} (7... Qb6 8. O-O Nf6 9. Kh1 O-O 10. Qe1 Bg4 11. b3 Nh5 12. Bd2 Rae8 13. Qh4 Bd7 14. Rae1 Qd8 15. e5 {0-1 (71) Mitkov,N (2477)-Sarana,A (2630) chess.com INT 2019}) 8. O-O {[%emt 0:00:53]} Rb8 {[%emt 0:05:21]} 9. Qe1 {[%emt 0:07:02]} e6 {[%emt 0:13:16]} ({Black should try} 9... Nh6 $14) 10. b3 {[%emt 0:06:50]} Ne7 {[%emt 0:01:09]} 11. Bd2 {[%emt 0:01:28]} O-O {[%emt 0:04:27]} 12. Rd1 $146 {[%emt 0:03:27]} ({Predecessor:} 12. e5 Nd5 13. exd6 Qxd6 14. Ne4 Qc7 15. Rc1 Bd4+ 16. Kh1 {1-0 (56) Zerfass,O (2031)-Walther,J (1748) Blankenburg 2008}) 12... f5 {[%emt 0:10:24] [#]} 13. e5 {[%emt 0:07:55]} ({White should play} 13. Na4 $1 $18) 13... Nd5 {[%emt 0:01:26]} 14. exd6 {[%emt 0:04:13]} Qxd6 {[%emt 0:00:08]} 15. Ne5 {[%emt 0:04:06]} Nb4 {[%emt 0:07:22]} 16. Rc1 {[%emt 0:04:39]} Re8 {[%emt 0:03:33]} 17. Kh1 {[%emt 0:02:13]} Ba6 {[%emt 0:02:57]} 18. Rf2 {[%emt 0:06:50]} Rbd8 {[%emt 0:01:55]} 19. a3 {[%emt 0:04:32]} Nd5 {[%emt 0:00:07]} 20. Re2 {[%emt 0:00:36]} Bc8 {[%emt 0:04:14]} 21. Qf2 {[%emt 0:02:22]} Ba6 {[%emt 0:07:22]} 22. Na4 {[%emt 0:05:44]} Bf8 {[%emt 0:03:34]} 23. Rce1 {[%emt 0:01:02]} Nb6 {[%emt 0:02:43]} 24. Nb2 {[%emt 0:05:16]} Qd4 {[%emt 0:08:21]} 25. Qxd4 {[%emt 0:13:05]} cxd4 {[%emt 0:00:09]} 26. Nxc6 {[%emt 0:01:19]} Rc8 {[%emt 0:00:06]} 27. Nxd4 {[%emt 0:01:09]} Bg7 {[%emt 0:02:39]} 28. c3 {[%emt 0:02:59]} Nd5 {[%emt 0:05:10]} 29. Nc4 {[%emt 0:00:59]} Rb8 {[%emt 0:03:47]} 30. b4 {[%emt 0:00:27]} Bxd4 {[%emt 0:02:21]} 31. cxd4 {[%emt 0:00:09]} Bc8 {[%emt 0:01:26]} 32. h3 {[%emt 0:02:40]} Re7 {[%emt 0:01:43]} 33. Rc1 {[%emt 0:02:04]} Rc7 {[%emt 0:01:07]} 34. Nd6 {[%emt 0:01:32]} Rxc1+ {[%emt 0:01:56]} 35. Bxc1 {[%emt 0:00:05]} Ba6 {[%emt 0:00:09]} 36. Rxe6 {[%emt 0:02:34]} Bxd3 {[%emt 0:00:27]} 37. Re8+ {[%emt 0:01:03]} Rxe8 {[%emt 0:00:09]} 38. Nxe8 {[%emt 0:00:01]} Kf7 {[%emt 0:00:52]} 39. Nd6+ {[%emt 0:00:27]} Ke6 {[%emt 0:00:28]} 40. Nb7 {[%emt 0:00:00]} Be2 {[%emt 0:00:00]} 41. Kg1 {[%emt 0:07:38]} Bd1 {[%emt 0:09:41]} 42. Kf2 {[%emt 0:02:49]} Ke7 {[%emt 0:02:21]} 43. Bd2 {[%emt 0:03:00]} Nb6 {[%emt 0:02:06]} 44. b5 {[%emt 0:11:48]} Ke6 {[%emt 0:09:36]} 45. Bb4 {[%emt 0:02:29]} Kd5 {[%emt 0:00:51]} 46. Bc5 {[%emt 0:01:11]} Ba4 {[%emt 0:00:39]} 47. Nd6 {[%emt 0:01:54]} Nd7 {[%emt 0:01:49]} 48. Bb4 {[%emt 0:02:22]} Kxd4 {[%emt 0:01:52]} 49. g4 {[%emt 0:00:41]} fxg4 {[%emt 0:00:51]} 50. hxg4 {[%emt 0:00:04]} Nf6 {[%emt 0:01:21]} 51. Kg3 {[%emt 0:01:00]} Kd5 {[%emt 0:04:50]} 52. Kh4 {[%emt 0:01:01]} Ke6 {[%emt 0:00:47]} 53. f5+ {[%emt 0:01:12]} gxf5 {[%emt 0:00:02]} 54. gxf5+ {[%emt 0:00:00]} Kd7 {[%emt 0:01:33]} 55. Kg5 {[%emt 0:00:22]} Ne8 {[%emt 0:00:41]} 56. Nf7 {[%emt 0:01:12]} Bxb5 {[%emt 0:00:10]} 57. Ne5+ {[%emt 0:00:48]} Kc8 {[%emt 0:00:34]} 58. f6 {[%emt 0:00:00]} h6+ {[%emt 0:00:27]} 59. Kg6 {[%emt 0:00:11]} Nxf6 {[%emt 0:00:15]} 60. Kxf6 {[%emt 0:00:08]} h5 {[%emt 0:00:13]} 61. Kg5 {[%emt 0:00:37]} Be8 {[%emt 0:00:33]} 62. Bc5 {[%emt 0:00:39]} Kb7 {[%emt 0:00:29]} 63. Nd3 {[%emt 0:00:55]} a5 {[%emt 0:00:30]} 64. Nf4 {[%emt 0:00:09]} Bf7 {[%emt 0:00:48]} 65. Be7 {[%emt 0:00:27]} a4 {[%emt 0:00:15]} 66. Bb4 {[%emt 0:00:21]} Kc6 {[%emt 0:00:20]} 67. Kf6 {[%emt 0:00:20]} Bb3 {[%emt 0:00:25]} 68. Nxh5 {[%emt 0:00:10]} Kb5 {[%emt 0:00:23]} 69. Ke5 {[%emt 0:00:13]} Ka6 {[%emt 0:00:21]} 70. Kd6 {[%emt 0:00:13]} Kb7 {[%emt 0:00:28]} 71. Kc5 {[%emt 0:00:12]} Bf7 {[%emt 0:00:37]} 72. Nf4 {[%emt 0:00:25]} Bb3 {[%emt 0:00:18]} 73. Kb5 {[%emt 0:00:11]} Bd1 {[%emt 0:00:35]} 74. Bc5 {[%emt 0:00:47]} Bb3 {[%emt 0:00:28]} 75. Ne2 {[%emt 0:01:35]} Bd1 {[%emt 0:00:34]} 76. Nd4 {[%emt 0:00:22]} Bb3 {[%emt 0:00:28]} 77. Bb6 {[%emt 0:00:21]} Bd1 {[%emt 0:00:29]} 78. Ne6 {[%emt 0:01:02]} Bb3 {[%emt 0:00:45]} 79. Nc5+ {[%emt 0:00:11]} Ka8 {[%emt 0:00:27]} 80. Kc6 {[%emt 0:01:14]} Bd1 {[%emt 0:00:47]} 81. Kc7 {[%emt 0:00:35]} Bc2 {[%emt 0:00:26]} 82. Nd7 {[%emt 0:00:51]} Bf5 {[%emt 0:00:23]} 83. Ne5 {[%emt 0:00:19]} Be6 {[%emt 0:00:57]} 84. Bc5 {[%emt 0:00:12]} Bd5 {[%emt 0:01:02]} 85. Nd7 {[%emt 0:00:19]} Bb3 {[%emt 0:00:10]} 86. Nb6+ {[%emt 0:00:16]} Ka7 {[%emt 0:00:12]} 87. Nxa4+ {[%emt 0:00:14]} Ka6 {[%emt 0:00:21]} 88. Nc3 {[%emt 0:00:32]} Bc2 {[%emt 0:00:42]} 89. Bb6 {[%emt 0:00:17]} Bb3 {[%emt 0:00:36]} 90. Bc5 {[%emt 0:01:37]} Bc2 {[%emt 0:00:28]} 91. Bb6 {[%emt 0:01:04]} Bb3 {[%emt 0:00:23]} 92. Ne4 {[%emt 0:00:31]} Kb5 {[%emt 0:00:27]} 93. Nd6+ {[%emt 0:00:33]} Ka6 {[%emt 0:00:27]} 94. Kc6 {[%emt 0:00:20]} Ba4+ {[%emt 0:00:21]} 95. Kc5 {[%emt 0:00:10]} Bd7 {[%emt 0:00:24]} 96. Ne4 {[%emt 0:00:36]} Kb7 {[%emt 0:00:32]} 97. Nd6+ {[%emt 0:00:48]} Ka6 {[%emt 0:00:26]} 98. Ne4 {[%emt 0:00:13]} Kb7 {[%emt 0:00:08]} 99. Nc3 {[%emt 0:00:08]} Ka6 {[%emt 0:00:38]} 100. a4 {[%emt 0:00:18]} Kb7 {[%emt 0:01:01]} 101. a5 {[%emt 0:00:28]} Bh3 {[%emt 0:00:40]} 102. Nd5 {[%emt 0:00:45]} Bg2 {[%emt 0:00:39]} 103. Nb4 {[%emt 0:00:16]} Bf1 {[%emt 0:00:17]} 104. Nc6 {[%emt 0:00:35]} Be2 {[%emt 0:00:47]} 105. Nd8+ {[%emt 0:00:18]} Kb8 {[%emt 0:00:35]} 106. Kd6 {[%emt 0:01:35]} Bf1 {[%emt 0:00:18]} 107. Be3 {[%emt 0:00:30]} Kc8 {[%emt 0:00:20]} 108. Bg5 {[%emt 0:00:33]} Be2 {[%emt 0:00:15]} 109. Kc5 {[%emt 0:00:31]} Kc7 {[%emt 0:00:30]} 110. Nf7 {[%emt 0:00:37]} Bf1 {[%emt 0:00:38]} 111. Nd6 {[%emt 0:00:37]} Be2 {[%emt 0:00:36]} 112. Bf4 {[%emt 0:00:12]} Bf1 {[%emt 0:00:23]} 113. Nc4+ {[%emt 0:00:45]} Kb7 {[%emt 0:00:12]} 114. Nb6 $18 {[%emt 0:00:16]} Be2 {[%emt 0:00:24]} 115. Bd2 {[%emt 0:00:30]} Bf1 {[%emt 0:00:22]} 116. Bb4 {[%emt 0:00:54]} Be2 {[%emt 0:00:15]} 117. Nd5 {[%emt 0:00:20]} Bf1 {[%emt 0:00:30]} 118. Kd6 {[%emt 0:00:17]} Be2 {[%emt 0:00:40]} 119. Nc3 {[%emt 0:00:24]} Bf1 {[%emt 0:00:23]} 120. Na4 {[%emt 0:00:13]} Be2 {[%emt 0:00:32]} 121. Nc5+ {[%emt 0:00:10]} Ka7 {[%emt 0:00:34]} 122. Kc7 {[%emt 0:00:12]} Bf1 {[%emt 0:00:58]} 123. Bd2 {[%emt 0:00:06]} Be2 {[%emt 0:01:01]} 124. Be3 {[%emt 0:00:06]} Bf1 {[%emt 0:00:19]} 125. Na4+ {[%emt 0:00:32]} Ka8 {[%emt 0:00:53]} 126. Kb6 {[%emt 0:00:07]} Bg2 {[%emt 0:00:35]} 127. a6 {[%emt 0:00:17]} Kb8 {[%emt 0:00:37]} 128. Nc5 {[%emt 0:00:22]} Ba8 {[%emt 0:00:27]} 129. Bf4+ {[%emt 0:00:17]} Kc8 {[%emt 0:00:01]} 130. Ka7 {[%emt 0:00:11]} Bg2 {[%emt 0:00:19]} 131. Nb7 {[%emt 0:00:19]} Bh1 {[%emt 0:00:46]} 132. Nd6+ {[%emt 0:00:22]} Kc7 {[%emt 0:00:23]} 133. Nb7+ {[%emt 0:02:05]} Kc8 {[%emt 0:00:30]} 134. Kb6 {[%emt 0:01:01]} Bg2 {[%emt 0:00:12]} 135. Nc5 {[%emt 0:00:30]} Bf3 {[%emt 0:01:00]} 136. a7 {[%emt 0:01:08]} Ba8 {[%emt 0:00:52]} 137. Na6 {[%emt 0:00:40]} Kd7 {[%emt 0:00:31]} 138. Nc7 {[%emt 0:01:03]} Bg2 {[%emt 0:00:12]} 139. a8=Q {[%emt 0:00:44]} Bxa8 {[%emt 0:00:06]} 140. Nxa8 {[%emt 0:00:06]} Ke6 {[%emt 0:00:06]} 141. Kc5 {[%emt 0:00:31]} Kf5 {[%emt 0:00:15]} 142. Bd6 {[%emt 0:00:15]} Ke4 {[%emt 0:00:10]} 143. Nb6 {[%emt 0:00:12]} Ke3 {[%emt 0:00:19]} 144. Kd5 {[%emt 0:00:18]} Kf3 {[%emt 0:00:27]} 145. Nc4 {[%emt 0:00:08]} Ke2 {[%emt 0:00:18]} 146. Ke4 {[%emt 0:00:20]} Kf2 {[%emt 0:00:12]} 147. Bf4 {[%emt 0:00:20]} Ke2 {[%emt 0:00:34]} 148. Bg3 {[%emt 0:00:35]} Kf1 {[%emt 0:00:16]} 149. Kf3 {[%emt 0:00:19]} Kg1 {[%emt 0:00:17]} 150. Bf4 {[%emt 0:01:16]} Kh1 {[%emt 0:00:25]} 151. Be3 {[%emt 0:00:13]} Kh2 {[%emt 0:00:13]} 152. Kf2 {[%emt 0:01:32]} Kh1 {[%emt 0:00:14]} 153. Kf3 {[%emt 0:00:46]} Kh2 {[%emt 0:00:08]} 154. Nd2 {[%emt 0:00:42]} Kh1 {[%emt 0:00:17]} 155. Ne4 {[%emt 0:00:42]} Kh2 {[%emt 0:00:11]} 156. Bf2 {[%emt 0:00:24]} Kh1 {[%emt 0:00:28]} 157. Be3 {[%emt 0:00:24]} Kh2 {[%emt 0:00:09]} 158. Ng3 {[%emt 0:00:29]} Kh3 {[%emt 0:00:12]} 159. Bg1 {[%emt 0:00:04]} Kh4 {[%emt 0:00:16]} 160. Ne4 {[%emt 0:00:42]} Kh3 {[%emt 0:00:37]} 161. Nf2+ {[%emt 0:00:07]} Kh4 {[%emt 0:00:20]} 162. Kf4 {[%emt 0:00:07]} Kh5 {[%emt 0:00:10]} 163. Kf5 {[%emt 0:00:27]} Kh4 {[%emt 0:00:17]} 164. Bh2 {[%emt 0:00:09]} Kh5 {[%emt 0:00:09]} 165. Bg3 {[%emt 0:00:29]} Kh6 {[%emt 0:00:10]} 166. Be5 {[%emt 0:01:33]} Kh5 {[%emt 0:00:34]} 167. Bf6 {[%emt 0:00:39]} Kh6 {[%emt 0:00:12]} 168. Ne4 {[%emt 0:00:37]} Kh5 {[%emt 0:00:30]} 169. Be7 {[%emt 0:00:32]} Kh6 {[%emt 0:00:11]} 170. Nf6 {[%emt 0:00:44]} Kg7 {[%emt 0:00:09]} 171. Nd5 {[%emt 0:00:42]} Kf7 {[%emt 0:00:31]} 172. Bf6 {[%emt 0:00:24]} Ke8 {[%emt 0:00:39]} 173. Ke6 {[%emt 0:00:14]} Kf8 {[%emt 0:00:09]} 174. Nc7 {[%emt 0:00:28]} Kg8 {[%emt 0:00:12]} 175. Be7 {[%emt 0:00:49]} Kg7 {[%emt 0:00:18]} 176. Nd5 {[%emt 0:00:34]} Kg6 {[%emt 0:00:13]} 177. Nf4+ {[%emt 0:00:23]} Kg7 {[%emt 0:00:59]} 178. Bg5 {[%emt 0:00:39]} Kf8 {[%emt 0:00:36]} 179. Bf6 {[%emt 0:00:20]} Ke8 {[%emt 0:01:27]} 180. Nh5 {[%emt 0:00:26]} Kf8 {[%emt 0:00:11]} 181. Be7+ {[%emt 0:00:28]} Kg8 {[%emt 0:00:23]} 182. Kf6 {[%emt 0:00:33]} Kh7 {[%emt 0:02:12]} 183. Kg5 {[%emt 0:00:11]} Kg8 {[%emt 0:00:47]} 184. Kg6 {[%emt 0:00:17]} Kh8 {[%emt 0:00:11]} 185. Bg5 {[%emt 0:00:16]} Kg8 {[%emt 0:00:17]} 186. Bh6 {[%emt 0:00:10]} Kh8 {[%emt 0:00:14]} 187. Bg7+ {[%emt 0:00:05]} Kg8 {[%emt 0:00:07]} 188. Nf6# {[%emt 0:00:04]} 1-0

[Event "European Amateur-ch U2000 2019"]
[Site "Rhodes"]
[Date "2019.04.12"]
[Round "7.5"]
[White "Nagy, Laszlo Bence"]
[Black "Zielinski, Olgierd"]
[Result "0-1"]
[ECO "E69"]
[WhiteElo "1978"]
[BlackElo "1850"]
[Annotator "NA"]
[PlyCount "52"]
[EventDate "2019.04.06"]
[EventType "swiss"]
[EventCountry "GRE"]
[SourceTitle "playchess.com"]
[Source "ChessBase"]
[SourceQuality "1"]
[TimeControl "40/5400+30:1800+30"]

1. Nf3 {[%emt 0:00:00]} Nf6 {[%emt 0:00:00]} 2. c4 {[%emt 0:00:00]} g6 {[%emt 0:00:00]} 3. Nc3 {[%emt 0:00:18]} Bg7 {[%emt 0:00:00]} 4. d4 {[%emt 0:00:43]} d6 {[%emt 0:00:12]} 5. g3 {[%emt 0:00:21]} O-O {[%emt 0:00:11]} 6. Bg2 {[%emt 0:00:03]} c6 {[%emt 0:00:15]} 7. O-O {[%emt 0:00:24]} Qa5 {[%emt 0:00:06]} 8. h3 {[%emt 0:03:31]} Nbd7 {[%emt 0:00:23]} 9. e4 {[%emt 0:01:05]} e5 {[%emt 0:00:09]} 10. d5 {[%emt 0:01:13]} cxd5 {[%emt 0:00:10] E69: King's Indian: Fianchetto: 6...Nbd7 7 0-0 e5 8 e4 c6 9 h3} 11. Nxd5 {[%emt 0:00:45]} (11. cxd5 b5 12. Nd2 b4 13. Nb3 Qc7 14. Ne2 Ba6 15. Re1 Rfc8 16. Bd2 Qb6 17. Be3 Qb5 18. a3 Nb6 19. axb4 Nc4 20. Bc1 Rab8 21. Nd2 Qb7 22. Nb1 Ne8 23. Nec3 Nc7 24. Bf1 Nb5 25. Nxb5 Bxb5 26. b3 {1-0 (26) Vajda,L (2600)-Gazik,V (2449) Zalakaros 2017}) 11... Nxd5 {[%emt 0:00:10]} 12. Qxd5 $146 {[%emt 0:00:43]} ({Predecessor:} 12. cxd5 Nc5 13. Nd2 f5 14. Nb3 Nxb3 15. Qxb3 f4 16. Rd1 h5 17. Bd2 Qd8 18. Rac1 {0-1 (33) Schulze,U (2380)-Watson,W (2470) Bern 1990}) 12... Qxd5 {[%emt 0:00:27]} 13. cxd5 {[%emt 0:02:51]} Nc5 {[%emt 0:00:30]} 14. Ne1 {[%emt 0:01:16]} a5 {[%emt 0:00:59]} 15. Bg5 {[%emt 0:01:10]} f6 {[%emt 0:00:12]} 16. Bd2 {[%emt 0:03:21]} b6 {[%emt 0:00:22]} 17. f3 {[%emt 0:00:26]} Ba6 {[%emt 0:01:00]} 18. Rf2 {[%emt 0:00:16]} f5 {[%emt 0:04:03]} 19. b4 {[%emt 0:08:10]} (19. Rc1 $15) 19... axb4 {[%emt 0:00:17]} 20. Bxb4 {[%emt 0:00:05]} Bh6 {[%emt 0:00:06]} 21. Bd2 {[%emt 0:00:33]} Bxd2 {[%emt 0:00:48]} 22. Rxd2 {[%emt 0:00:13]} fxe4 {[%emt 0:00:10]} 23. fxe4 {[%emt 0:01:00]} Bc4 {[%emt 0:00:31]} 24. Rb2 {[%emt 0:04:49]} b5 {[%emt 0:00:45]} 25. h4 {[%emt 0:06:30]} Ra3 {[%emt 0:02:12]} 26. Kh2 {[%emt 0:01:09]} Rfa8 $19 {[%emt 0:01:39]} 0-1

[Event "European Amateur-ch U2000 2019"]
[Site "Rhodes"]
[Date "2019.04.12"]
[Round "7.6"]
[White "Zakharov, Denis"]
[Black "Boesch, Heinz"]
[Result "1/2-1/2"]
[ECO "C44"]
[WhiteElo "1889"]
[BlackElo "1929"]
[Annotator "NA"]
[PlyCount "124"]
[EventDate "2019.04.06"]
[EventType "swiss"]
[EventCountry "GRE"]
[SourceTitle "playchess.com"]
[Source "ChessBase"]
[SourceQuality "1"]
[TimeControl "40/5400+30:1800+30"]

1. Nf3 {[%emt 0:00:00]} Nc6 {[%emt 0:00:00]} 2. d3 {[%emt 0:02:46]} e5 {[%emt 0:00:09]} 3. e4 {[%emt 0:00:46]} Nf6 {[%emt 0:00:31]} 4. g3 {[%emt 0:00:08]} d5 {[%emt 0:02:37]} 5. Nbd2 {[%emt 0:00:45]} dxe4 {[%emt 0:05:09]} (5... Be7 6. Bg2 O-O 7. O-O h6 8. Re1 d4 9. Nc4 Nd7 10. a4 Re8 11. c3 dxc3 12. bxc3 Nc5 13. Nfxe5 Nxe5 14. Nxe5 Bf6 15. d4 Bxe5 16. dxe5 Qxd1 17. Rxd1 {1-0 (34) Nakamura,H (2786)-Caruana,F (2802) chess.com INT 2017}) 6. dxe4 {[%emt 0:00:03] C44: Ponziani Opening and Scotch Gambit} Bg4 {[%emt 0:03:00]} 7. Bg2 {[%emt 0:00:55]} Qd7 {[%emt 0:03:32]} 8. O-O {[%emt 0:00:21]} Bh3 $146 {[%emt 0:04:06]} ({Predecessor:} 8... O-O-O 9. Re1 h5 10. Re3 Qe6 11. Qf1 Nb4 12. Rc3 Kb8 13. Ng5 Qe8 14. Qc4 Rd7 15. Rb3 Qe7 16. a3 Rd4 17. Qc3 {0-1 (81) Pshevskaya,Y (1362)-Rozmanec,P (1094) Prague 2016}) 9. c3 {[%emt 0:00:30]} Bxg2 {[%emt 0:00:10]} 10. Kxg2 {[%emt 0:00:03]} O-O-O {[%emt 0:01:46]} 11. Qb3 {[%emt 0:01:25]} h6 {[%emt 0:04:56]} 12. Nc4 {[%emt 0:02:44]} Qe8 {[%emt 0:12:28]} 13. Re1 {[%emt 0:02:22]} Nd7 {[%emt 0:04:19]} 14. Be3 {[%emt 0:00:54]} Bc5 {[%emt 0:07:02]} 15. Rad1 {[%emt 0:01:59]} Bxe3 {[%emt 0:00:53]} 16. Nxe3 {[%emt 0:01:27]} Kb8 {[%emt 0:06:26]} 17. a4 {[%emt 0:01:20]} f6 {[%emt 0:07:54]} 18. Qc2 {[%emt 0:02:21]} Nc5 {[%emt 0:04:40]} 19. b4 {[%emt 0:02:21]} Rxd1 {[%emt 0:00:56]} 20. Rxd1 {[%emt 0:00:55]} Ne6 {[%emt 0:00:07]} 21. b5 {[%emt 0:07:55]} Na5 {[%emt 0:05:53]} 22. c4 {[%emt 0:00:26]} Qe7 {[%emt 0:03:41]} 23. Qc3 {[%emt 0:00:38]} b6 $11 {[%emt 0:00:22]} 24. Nd5 {[%emt 0:00:36]} Qc5 {[%emt 0:01:46]} 25. Nd2 {[%emt 0:02:36]} Nd4 {[%emt 0:00:40]} 26. Nb4 {[%emt 0:00:51]} Kc8 {[%emt 0:08:39]} 27. Na6 {[%emt 0:00:11]} Qe7 {[%emt 0:00:41]} 28. c5 {[%emt 0:01:14]} Nb7 {[%emt 0:00:07]} 29. cxb6 {[%emt 0:00:54]} axb6 {[%emt 0:00:10]} 30. Nf1 {[%emt 0:09:48]} Nc5 {[%emt 0:02:24]} 31. Qa3 {[%emt 0:05:46]} Kd7 {[%emt 0:01:07]} 32. Nxc5+ {[%emt 0:05:15]} Qxc5 {[%emt 0:00:02]} 33. Qa2 {[%emt 0:00:56]} Ke7 {[%emt 0:00:42]} 34. Ne3 {[%emt 0:00:01]} Ra8 {[%emt 0:01:12]} 35. Nd5+ {[%emt 0:00:10]} Kf8 {[%emt 0:01:04]} 36. Ra1 {[%emt 0:03:20]} Nxb5 {[%emt 0:01:04]} 37. Qb2 {[%emt 0:00:38]} Nd4 {[%emt 0:04:22]} 38. Rc1 {[%emt 0:00:18]} Qa5 {[%emt 0:00:51]} 39. Rxc7 {[%emt 0:02:01]} Qxa4 {[%emt 0:00:27]} 40. Nxb6 {[%emt 0:00:00]} Qa2 {[%emt 0:00:00]} 41. Qb4+ {[%emt 0:01:47]} Kg8 {[%emt 0:01:37]} 42. Nxa8 {[%emt 0:00:20]} Qxa8 {[%emt 0:00:07]} 43. Qb7 {[%emt 0:01:00]} Qxb7 {[%emt 0:00:16]} 44. Rxb7 {[%emt 0:00:01]} Kh7 {[%emt 0:00:11]} 45. h4 {[%emt 0:00:44]} h5 {[%emt 0:03:39]} 46. f4 {[%emt 0:01:01]} exf4 {[%emt 0:08:47]} 47. gxf4 {[%emt 0:00:13]} Ne6 {[%emt 0:01:24]} 48. Kf3 {[%emt 0:01:04]} Kh6 {[%emt 0:00:59]} 49. f5 {[%emt 0:00:49]} Nc5 {[%emt 0:00:20]} 50. Rc7 {[%emt 0:00:48]} Nd3 {[%emt 0:00:11]} 51. Rc8 {[%emt 0:01:09]} Kh7 {[%emt 0:00:12]} 52. Rd8 {[%emt 0:00:14]} Ne5+ {[%emt 0:00:07]} 53. Kf4 {[%emt 0:00:20]} Ng4 {[%emt 0:00:58]} 54. Re8 {[%emt 0:00:28]} Nf2 {[%emt 0:00:52]} 55. e5 {[%emt 0:07:01]} Nd3+ {[%emt 0:00:46]} 56. Ke4 {[%emt 0:01:14]} Nxe5 {[%emt 0:00:06]} 57. Rxe5 {[%emt 0:01:34]} fxe5 {[%emt 0:00:06]} 58. Kxe5 {[%emt 0:00:06]} Kg8 {[%emt 0:05:55]} 59. Kf4 {[%emt 0:00:09]} Kf8 {[%emt 0:00:19]} 60. Kg5 {[%emt 0:00:14]} Kf7 {[%emt 0:00:08]} 61. Kxh5 {[%emt 0:00:25]} Kf6 {[%emt 0:00:27]} 62. Kg4 {[%emt 0:00:26]} g6 {[%emt 0:00:09]} 1/2-1/2

[Event "European Amateur-ch U2000 2019"]
[Site "Rhodes"]
[Date "2019.04.12"]
[Round "7.7"]
[White "Krzysztynska, Anna"]
[Black "Minko, Olga"]
[Result "1-0"]
[ECO "C65"]
[WhiteElo "1844"]
[BlackElo "1833"]
[Annotator "NA"]
[PlyCount "85"]
[EventDate "2019.04.06"]
[EventType "swiss"]
[EventCountry "GRE"]
[SourceTitle "playchess.com"]
[Source "ChessBase"]
[SourceQuality "1"]
[TimeControl "40/5400+30:1800+30"]

1. e4 {[%emt 0:00:00]} e5 {[%emt 0:00:03]} 2. Nf3 {[%emt 0:00:12]} Nc6 {[%emt 0:00:12]} 3. Bb5 {[%emt 0:00:15]} Nf6 {[%emt 0:00:15]} 4. d3 {[%emt 0:00:27]} Ne7 {[%emt 0:00:19]} 5. O-O {[%emt 0:00:13]} Ng6 {[%emt 0:01:08]} 6. d4 {[%emt 0:01:09]} Nxe4 {[%emt 0:03:38]} 7. dxe5 {[%emt 0:00:46]} c6 {[%emt 0:01:19]} 8. Bc4 {[%emt 0:07:53]} d5 {[%emt 0:03:01]} 9. exd6 {[%emt 0:07:52]} Nxd6 {[%emt 0:06:16]} 10. Re1+ {[%emt 0:03:06]} Be7 {[%emt 0:01:44]} 11. Bb3 {[%emt 0:00:41]} O-O {[%emt 0:04:18]} 12. Nc3 {[%emt 0:00:52]} Qc7 {[%emt 0:06:40]} 13. Ng5 $11 {[%emt 0:22:18]} h6 {[%emt 0:25:40]} 14. Qh5 {[%emt 0:07:45]} Nh8 {[%emt 0:06:22]} 15. Nf3 {[%emt 0:04:50]} Bf5 {[%emt 0:06:27]} 16. Bf4 {[%emt 0:04:59]} Bg6 {[%emt 0:05:35]} 17. Qc5 {[%emt 0:04:37]} Nc8 {[%emt 0:05:54]} 18. Qc4 {[%emt 0:06:51]} Qa5 {[%emt 0:06:36]} 19. a3 {[%emt 0:09:02]} Bd6 {[%emt 0:02:23]} 20. Ne5 {[%emt 0:01:58]} Nb6 {[%emt 0:03:00]} 21. Qd4 {[%emt 0:02:05]} Bc5 {[%emt 0:01:06]} 22. Qd1 {[%emt 0:03:29]} Rad8 {[%emt 0:02:58]} 23. Qg4 {[%emt 0:00:22]} Kh7 {[%emt 0:01:06]} 24. Qh4 {[%emt 0:00:21]} Nd7 {[%emt 0:01:14]} 25. Nc4 {[%emt 0:01:56]} Qa6 {[%emt 0:00:45]} 26. Rad1 {[%emt 0:01:02]} Nf6 {[%emt 0:00:39]} 27. Bxh6 {[%emt 0:02:13]} gxh6 {[%emt 0:02:44]} 28. Qxf6 {[%emt 0:00:16]} Rxd1 {[%emt 0:00:52]} 29. Rxd1 {[%emt 0:00:16]} b5 {[%emt 0:00:10]} 30. Ne5 {[%emt 0:00:35]} Qc8 {[%emt 0:01:03]} 31. Rd7 {[%emt 0:03:51]} Qe8 {[%emt 0:00:34]} 32. h3 {[%emt 0:00:44]} Rg8 {[%emt 0:01:05]} 33. Ne2 {[%emt 0:02:08]} Bf8 {[%emt 0:00:19]} 34. Rd8 {[%emt 0:00:42]} Be7 {[%emt 0:00:46]} 35. Rxe8 {[%emt 0:00:25]} Bxf6 {[%emt 0:00:02]} 36. Rxg8 {[%emt 0:01:03]} Kxg8 {[%emt 0:00:01]} 37. Nxc6 {[%emt 0:00:27]} a6 {[%emt 0:00:59]} 38. c3 {[%emt 0:00:09]} Be4 {[%emt 0:00:41]} 39. Ned4 {[%emt 0:00:37]} Ng6 {[%emt 0:00:37]} 40. Nb8 {[%emt 0:00:00]} Bb7 {[%emt 0:00:00]} 41. Nf5 {[%emt 0:02:20]} Ne5 {[%emt 0:09:52]} 42. Nd6 {[%emt 0:04:11]} Ba8 {[%emt 0:02:51]} 43. Nxa6 {[%emt 0:02:41]} 1-0